[Event "*** Titled Tuesday Blitz"]
[Site "Chess.com"]
[Date "2020.04.21"]
[Round "1"]
[White "IAgrest"]
[Black "Unknown_IM"]
[Result "0-1"]
[WhiteElo "2282"]
[BlackElo "2628"]
[TimeControl "180+1"]
[EndTime "10:06:38 PDT"]
[Termination "Unknown_IM won by resignation"]

1. e4 {[%clk 0:03:00.9]} 1... c5 {[%clk 0:02:59.1]} 2. Nf3 {[%clk 0:03:00.4]}
2... e6 {[%clk 0:02:58.2]} 3. d4 {[%clk 0:03:00.6]} 3... cxd4 {[%clk 0:02:59.1]}
4. Nxd4 {[%clk 0:03:01.3]} 4... Nf6 {[%clk 0:02:59.7]} 5. Nc3 {[%clk 0:03:00.9]}
5... Nc6 {[%clk 0:02:59.8]} 6. Be3 {[%clk 0:02:55.9]} 6... Bb4 {[%clk
0:02:59.3]} 7. Qd2 {[%clk 0:02:48.6]} 7... Nxe4 {[%clk 0:02:58.3]} 8. Qd3 {[%clk
0:02:45.2]} 8... Nxc3 {[%clk 0:02:54.7]} 9. bxc3 {[%clk 0:02:46.1]} 9... Be7
{[%clk 0:02:53.7]} 10. Be2 {[%clk 0:02:43.4]} 10... O-O {[%clk 0:02:53.1]} 11.
O-O {[%clk 0:02:42.6]} 11... d5 {[%clk 0:02:53.5]} 12. Rab1 {[%clk 0:02:40.9]}
12... e5 {[%clk 0:02:52]} 13. Nf5 {[%clk 0:02:36.1]} 13... Bf6 {[%clk
0:02:51.9]} 14. Rfd1 {[%clk 0:02:27.7]} 14... Be6 {[%clk 0:02:24.6]} 15. Bc5
{[%clk 0:02:12.7]} 15... e4 {[%clk 0:02:20.7]} 16. Qh3 {[%clk 0:02:04.1]} 16...
Re8 {[%clk 0:02:08]} 17. Bg4 {[%clk 0:01:50.4]} 17... b6 {[%clk 0:02:02.4]} 18.
Be3 {[%clk 0:01:31.1]} 18... Bxc3 {[%clk 0:01:49.3]} 19. Bxb6 {[%clk 0:01:21.9]}
19... Qf6 {[%clk 0:01:26.1]} 20. Bc5 {[%clk 0:00:59.5]} 20... Ne5 {[%clk
0:01:10.5]} 21. Qxc3 {[%clk 0:00:41.9]} 21... Nxg4 {[%clk 0:01:09.5]} 22. Qxf6
{[%clk 0:00:27.9]} 22... Nxf6 {[%clk 0:01:08.8]} 23. Nd4 {[%clk 0:00:18.9]}
23... Bg4 {[%clk 0:01:05.8]} 24. Re1 {[%clk 0:00:17]} 24... Nd7 {[%clk
0:01:03.9]} 25. Bd6 {[%clk 0:00:11.4]} 25... Nb6 {[%clk 0:01:02.6]} 26. h3
{[%clk 0:00:10.7]} 26... Bd7 {[%clk 0:01:01.1]} 27. Bc5 {[%clk 0:00:09.9]} 27...
Na4 {[%clk 0:00:58.6]} 28. Bb4 {[%clk 0:00:07.3]} 28... Rab8 {[%clk 0:00:55.9]}
29. a3 {[%clk 0:00:05.7]} 29... Nb6 {[%clk 0:00:52.8]} 30. Bd6 {[%clk
0:00:04.6]} 30... Rbc8 {[%clk 0:00:50.3]} 31. Re2 {[%clk 0:00:03.7]} 31... Nc4
{[%clk 0:00:49.1]} 32. Bb4 {[%clk 0:00:02.5]} 32... a5 {[%clk 0:00:47.9]} 33.
Bd6 {[%clk 0:00:02.2]} 33... Nxd6 {[%clk 0:00:47.3]} 0-1

[Event "*** Titled Tuesday Blitz"]
[Site "Chess.com"]
[Date "2020.04.21"]
[Round "1"]
[White "Richarzard69"]
[Black "Kavyev_Ruslan"]
[Result "1/2-1/2"]
[WhiteElo "2244"]
[BlackElo "2581"]
[TimeControl "180+1"]
[EndTime "10:06:39 PDT"]
[Termination "Game drawn by repetition"]

1. Nf3 {[%clk 0:02:56.2]} 1... Nf6 {[%clk 0:02:59.8]} 2. c4 {[%clk 0:02:55.7]}
2... g6 {[%clk 0:02:59.8]} 3. Nc3 {[%clk 0:02:51.9]} 3... d5 {[%clk 0:02:59.7]}
4. cxd5 {[%clk 0:02:50.7]} 4... Nxd5 {[%clk 0:03:00.6]} 5. e4 {[%clk 0:02:50.4]}
5... Nxc3 {[%clk 0:03:00.5]} 6. dxc3 {[%clk 0:02:49.4]} 6... Qxd1+ {[%clk
0:02:59.1]} 7. Kxd1 {[%clk 0:02:50.1]} 7... f6 {[%clk 0:02:57.5]} 8. h4 {[%clk
0:02:48.4]} 8... e5 {[%clk 0:02:56.5]} 9. h5 {[%clk 0:02:48]} 9... g5 {[%clk
0:02:54.6]} 10. Be3 {[%clk 0:02:46.4]} 10... h6 {[%clk 0:02:54.2]} 11. Bc4
{[%clk 0:02:44.6]} 11... Nd7 {[%clk 0:02:54.5]} 12. a4 {[%clk 0:02:43.8]} 12...
Bc5 {[%clk 0:02:54.2]} 13. Re1 {[%clk 0:02:35.8]} 13... c6 {[%clk 0:02:53]} 14.
Kc2 {[%clk 0:02:31.4]} 14... Bxe3 {[%clk 0:02:52.7]} 15. Rxe3 {[%clk 0:02:30.5]}
15... Nc5 {[%clk 0:02:53]} 16. a5 {[%clk 0:02:23.7]} 16... a6 {[%clk 0:02:50.8]}
17. b4 {[%clk 0:02:15.8]} 17... Ne6 {[%clk 0:02:49.7]} 18. Rd1 {[%clk
0:02:11.4]} 18... Nf4 {[%clk 0:02:48.7]} 19. g3 {[%clk 0:01:55.2]} 19... Nxh5
{[%clk 0:02:47.4]} 20. Nd2 {[%clk 0:01:44.3]} 20... Ng7 {[%clk 0:02:46.3]} 21.
Nb3 {[%clk 0:01:42.2]} 21... Be6 {[%clk 0:02:45.5]} 22. Bxe6 {[%clk 0:01:34.6]}
22... Nxe6 {[%clk 0:02:46.4]} 23. Red3 {[%clk 0:01:32.6]} 23... Rd8 {[%clk
0:02:45.6]} 24. Rxd8+ {[%clk 0:01:27.9]} 24... Nxd8 {[%clk 0:02:46.5]} 25. Nc5
{[%clk 0:01:28.3]} 25... Rh7 {[%clk 0:02:47.2]} 26. Rd6 {[%clk 0:01:24.6]} 26...
Rf7 {[%clk 0:02:41.3]} 27. g4 {[%clk 0:01:20.9]} 27... Ke7 {[%clk 0:02:40.7]}
28. Rd7+ {[%clk 0:01:19.3]} 28... Ke8 {[%clk 0:02:41]} 29. Rd6 {[%clk
0:01:14.4]} 29... Rf8 {[%clk 0:02:26.8]} 30. f3 {[%clk 0:01:01.1]} 30... Rf7
{[%clk 0:02:04.5]} 31. c4 {[%clk 0:00:57.4]} 31... Ke7 {[%clk 0:02:03]} 32. Rd7+
{[%clk 0:00:56.5]} 32... Ke8 {[%clk 0:02:03.3]} 33. Rd6 {[%clk 0:00:55.3]} 33...
Rf8 {[%clk 0:02:02.8]} 34. Kc3 {[%clk 0:00:53.1]} 34... Rf7 {[%clk 0:02:03]} 35.
Kb3 {[%clk 0:00:39.2]} 35... Rf8 {[%clk 0:01:57]} 36. Ka4 {[%clk 0:00:33.3]}
36... Rf7 {[%clk 0:01:56.4]} 37. b5 {[%clk 0:00:32.2]} 37... cxb5+ {[%clk
0:01:53.5]} 38. cxb5 {[%clk 0:00:33.1]} 38... Rc7 {[%clk 0:01:54.1]} 39. Kb4
{[%clk 0:00:29.1]} 39... Ke7 {[%clk 0:01:53]} 40. Re6+ {[%clk 0:00:23]} 40...
Kf7 {[%clk 0:01:51.5]} 41. Rb6 {[%clk 0:00:20.3]} 41... axb5 {[%clk 0:01:50.9]}
42. Kxb5 {[%clk 0:00:19.4]} 42... Ke7 {[%clk 0:01:50.9]} 43. Kb4 {[%clk
0:00:13]} 43... Nc6+ {[%clk 0:01:49]} 44. Kb5 {[%clk 0:00:12.5]} 44... Nd8
{[%clk 0:01:41.3]} 45. Kb4 {[%clk 0:00:12.3]} 45... Rc6 {[%clk 0:01:37.9]} 46.
Kb5 {[%clk 0:00:09.9]} 46... Rc7 {[%clk 0:01:26.2]} 1/2-1/2

[Event "*** Titled Tuesday Blitz"]
[Site "Chess.com"]
[Date "2020.04.21"]
[Round "1"]
[White "Vesper2018"]
[Black "Kingsman132"]
[Result "0-1"]
[WhiteElo "1965"]
[BlackElo "2495"]
[TimeControl "180+1"]
[EndTime "10:06:39 PDT"]
[Termination "Kingsman132 won by checkmate"]

1. e4 {[%clk 0:02:59.6]} 1... e5 {[%clk 0:02:55.4]} 2. Nf3 {[%clk 0:02:59]} 2...
Nc6 {[%clk 0:02:54.7]} 3. Bb5 {[%clk 0:02:58]} 3... a6 {[%clk 0:02:52.5]} 4. Ba4
{[%clk 0:02:57.8]} 4... Nf6 {[%clk 0:02:50.8]} 5. O-O {[%clk 0:02:57.2]} 5... b5
{[%clk 0:02:50.4]} 6. Bb3 {[%clk 0:02:56.9]} 6... Bc5 {[%clk 0:02:50.4]} 7. c3
{[%clk 0:02:49]} 7... d6 {[%clk 0:02:49.9]} 8. a4 {[%clk 0:02:44]} 8... Rb8
{[%clk 0:02:48.1]} 9. d4 {[%clk 0:02:41.3]} 9... Bb6 {[%clk 0:02:43.6]} 10. a5
{[%clk 0:02:41.5]} 10... Ba7 {[%clk 0:02:38.8]} 11. h3 {[%clk 0:02:36.2]} 11...
O-O {[%clk 0:02:35.6]} 12. Re1 {[%clk 0:02:26.7]} 12... h6 {[%clk 0:02:34.3]}
13. Be3 {[%clk 0:02:20.1]} 13... Ra8 {[%clk 0:02:28.8]} 14. d5 {[%clk 0:02:07]}
14... Bxe3 {[%clk 0:02:21.8]} 15. Rxe3 {[%clk 0:02:05.3]} 15... Ne7 {[%clk
0:02:19.8]} 16. c4 {[%clk 0:02:04]} 16... bxc4 {[%clk 0:02:17.4]} 17. Bxc4
{[%clk 0:02:04.1]} 17... Ng6 {[%clk 0:02:17.8]} 18. Nc3 {[%clk 0:01:57.7]} 18...
Nf4 {[%clk 0:02:17.7]} 19. Ne2 {[%clk 0:01:52.8]} 19... N6h5 {[%clk 0:02:14.7]}
20. Ng3 {[%clk 0:01:52.5]} 20... Qf6 {[%clk 0:02:08.5]} 21. Nxh5 {[%clk
0:01:38.9]} 21... Nxh5 {[%clk 0:02:08.2]} 22. Nh2 {[%clk 0:01:39.2]} 22... Nf4
{[%clk 0:02:06.9]} 23. Rg3 {[%clk 0:01:35.7]} 23... Rb8 {[%clk 0:02:00.5]} 24.
b3 {[%clk 0:01:35.6]} 24... Qh4 {[%clk 0:01:44.5]} 25. Qf1 {[%clk 0:01:23.3]}
25... f5 {[%clk 0:01:37.6]} 26. exf5 {[%clk 0:01:18.7]} 26... Bxf5 {[%clk
0:01:36.6]} 27. Bxa6 {[%clk 0:01:12.6]} 27... Be4 {[%clk 0:01:25.6]} 28. Bc4
{[%clk 0:01:02.8]} 28... Bxd5 {[%clk 0:01:15.3]} 29. Rg4 {[%clk 0:00:57]} 29...
Bxc4 {[%clk 0:01:10.3]} 30. Qxc4+ {[%clk 0:00:42.1]} 30... d5 {[%clk 0:01:10.4]}
31. Rxh4 {[%clk 0:00:27.1]} 31... dxc4 {[%clk 0:01:08.3]} 32. bxc4 {[%clk
0:00:27.6]} 32... Ne2+ {[%clk 0:01:08.5]} 33. Kh1 {[%clk 0:00:26.2]} 33... Rxf2
{[%clk 0:01:00.6]} 34. a6 {[%clk 0:00:23.9]} 34... Ng3+ {[%clk 0:00:59.7]} 35.
Kg1 {[%clk 0:00:23.5]} 35... Rbb2 {[%clk 0:00:57.8]} 36. Rg4 {[%clk 0:00:05.2]}
36... Rxg2# {[%clk 0:00:58.7]} 0-1

[Event "*** Titled Tuesday Blitz"]
[Site "Chess.com"]
[Date "2020.04.21"]
[Round "1"]
[White "Funkmaus"]
[Black "AndrewMaco"]
[Result "0-1"]
[WhiteElo "2208"]
[BlackElo "2566"]
[TimeControl "180+1"]
[EndTime "10:06:40 PDT"]
[Termination "AndrewMaco won by resignation"]

1. d4 {[%clk 0:02:56.5]} 1... Nf6 {[%clk 0:02:58.1]} 2. Nf3 {[%clk 0:02:57.3]}
2... e6 {[%clk 0:02:58.2]} 3. g3 {[%clk 0:02:58.1]} 3... b5 {[%clk 0:02:57]} 4.
Bg2 {[%clk 0:02:59]} 4... Bb7 {[%clk 0:02:56.4]} 5. O-O {[%clk 0:02:59.8]} 5...
Be7 {[%clk 0:02:55.3]} 6. c3 {[%clk 0:03:00.6]} 6... O-O {[%clk 0:02:55.3]} 7.
Nbd2 {[%clk 0:03:01.5]} 7... c5 {[%clk 0:02:53.9]} 8. Re1 {[%clk 0:02:57.4]}
8... d5 {[%clk 0:02:51.7]} 9. Ne5 {[%clk 0:02:56.2]} 9... Nbd7 {[%clk
0:02:46.4]} 10. Ndf3 {[%clk 0:02:56.2]} 10... a5 {[%clk 0:02:41.1]} 11. h3
{[%clk 0:02:48]} 11... b4 {[%clk 0:02:39.3]} 12. Qa4 {[%clk 0:02:42]} 12... Nb6
{[%clk 0:02:34.7]} 13. Qc2 {[%clk 0:02:21.6]} 13... cxd4 {[%clk 0:02:33.8]} 14.
cxd4 {[%clk 0:02:22.4]} 14... Rc8 {[%clk 0:02:33.6]} 15. Qd3 {[%clk 0:02:17.7]}
15... Nc4 {[%clk 0:02:18.6]} 16. b3 {[%clk 0:02:12.7]} 16... Nd6 {[%clk
0:02:14.5]} 17. Bd2 {[%clk 0:01:53.3]} 17... Qb6 {[%clk 0:02:13.6]} 18. Rac1
{[%clk 0:01:50.4]} 18... Ba6 {[%clk 0:02:08.3]} 19. Qb1 {[%clk 0:01:47]} 19...
Nde4 {[%clk 0:02:00.9]} 20. Bf1 {[%clk 0:01:16.9]} 20... Nxd2 {[%clk 0:01:54.2]}
21. Nxd2 {[%clk 0:01:16.8]} 21... Qxd4 {[%clk 0:01:54.3]} 22. Ndf3 {[%clk
0:01:11.7]} 22... Qb6 {[%clk 0:01:53]} 23. Rxc8 {[%clk 0:01:06.9]} 23... Rxc8
{[%clk 0:01:52.5]} 24. Rc1 {[%clk 0:01:06.8]} 24... Rc3 {[%clk 0:01:47.3]} 25.
Rxc3 {[%clk 0:01:06.1]} 25... bxc3 {[%clk 0:01:48.2]} 26. Qc2 {[%clk 0:01:03]}
26... Ne4 {[%clk 0:01:41.6]} 27. e3 {[%clk 0:00:56.1]} 27... h6 {[%clk
0:01:28.7]} 28. Nd7 {[%clk 0:00:49]} 28... Qa7 {[%clk 0:01:26.1]} 29. Nde5
{[%clk 0:00:31]} 29... Bf6 {[%clk 0:01:16.9]} 30. Nc6 {[%clk 0:00:26.9]} 30...
Qb6 {[%clk 0:01:16.4]} 31. Ncd4 {[%clk 0:00:20.8]} 31... Bxf1 {[%clk 0:00:57.7]}
32. Kxf1 {[%clk 0:00:20.7]} 32... g6 {[%clk 0:00:57.6]} 33. Ne1 {[%clk
0:00:14.7]} 33... Bxd4 {[%clk 0:00:56.3]} 34. exd4 {[%clk 0:00:14.5]} 34... Qxd4
{[%clk 0:00:57.2]} 0-1

[Event "*** Titled Tuesday Blitz"]
[Site "Chess.com"]
[Date "2020.04.21"]
[Round "1"]
[White "Rsnr"]
[Black "ChrisTool2"]
[Result "1-0"]
[WhiteElo "2777"]
[BlackElo "2404"]
[TimeControl "180+1"]
[EndTime "10:06:41 PDT"]
[Termination "Rsnr won by resignation"]

1. d4 {[%clk 0:03:00.4]} 1... Nf6 {[%clk 0:02:38.5]} 2. c4 {[%clk 0:03:00.6]}
2... e6 {[%clk 0:02:38.3]} 3. Nf3 {[%clk 0:03:00.8]} 3... d5 {[%clk 0:02:38.3]}
4. g3 {[%clk 0:03:00.9]} 4... dxc4 {[%clk 0:02:36]} 5. Bg2 {[%clk 0:03:01.1]}
5... Nc6 {[%clk 0:02:35.8]} 6. Qa4 {[%clk 0:03:00.8]} 6... Bb4+ {[%clk
0:02:31.5]} 7. Bd2 {[%clk 0:03:01.1]} 7... Nd5 {[%clk 0:02:30.7]} 8. Bxb4 {[%clk
0:03:01.5]} 8... Nxb4 {[%clk 0:02:30]} 9. O-O {[%clk 0:03:02.2]} 9... O-O {[%clk
0:02:20.7]} 10. Na3 {[%clk 0:03:02.1]} 10... Rb8 {[%clk 0:02:12.1]} 11. Qb5
{[%clk 0:03:02.1]} 11... a6 {[%clk 0:01:42.8]} 12. Qxc4 {[%clk 0:03:02.1]} 12...
b5 {[%clk 0:01:35.6]} 13. Qc5 {[%clk 0:02:57.4]} 13... Qd6 {[%clk 0:01:24.1]}
14. Rfc1 {[%clk 0:02:58]} 14... Bb7 {[%clk 0:01:17.9]} 15. Nc2 {[%clk
0:01:45.7]} 15... Qxc5 {[%clk 0:01:06.1]} 16. dxc5 {[%clk 0:01:46.6]} 16... Rfd8
{[%clk 0:01:02.5]} 17. a3 {[%clk 0:01:41.1]} 17... Nxc2 {[%clk 0:00:55.8]} 18.
Rxc2 {[%clk 0:01:42]} 18... Na5 {[%clk 0:00:49.9]} 19. Nd2 {[%clk 0:01:33.3]}
19... Bxg2 {[%clk 0:00:45.9]} 20. Kxg2 {[%clk 0:01:34.2]} 20... Rxd2 {[%clk
0:00:42]} 21. Rxd2 {[%clk 0:01:34.3]} 21... Nb3 {[%clk 0:00:42.3]} 22. Rad1
{[%clk 0:01:35.2]} 22... Nxd2 {[%clk 0:00:40.8]} 23. Rxd2 {[%clk 0:01:36.1]}
23... Kf8 {[%clk 0:00:29.1]} 24. Rd7 {[%clk 0:01:36.3]} 24... Rc8 {[%clk
0:00:29.6]} 25. c6 {[%clk 0:01:36.9]} 25... g5 {[%clk 0:00:23.2]} 26. Kf3 {[%clk
0:01:36.2]} 26... h6 {[%clk 0:00:21.3]} 27. Ke4 {[%clk 0:01:34.1]} 27... Kg7
{[%clk 0:00:20.4]} 28. Ke5 {[%clk 0:01:30.1]} 28... Kg6 {[%clk 0:00:19.3]} 29.
g4 {[%clk 0:01:30.1]} 29... f6+ {[%clk 0:00:18.1]} 30. Kxe6 {[%clk 0:01:28.6]}
30... Re8+ {[%clk 0:00:18.4]} 31. Re7 {[%clk 0:01:29.3]} 31... Rd8 {[%clk
0:00:16.2]} 32. Rxc7 {[%clk 0:01:29.1]} 32... Rd2 {[%clk 0:00:16.4]} 33. e4
{[%clk 0:01:07.3]} 33... Rxf2 {[%clk 0:00:17.3]} 34. Re7 {[%clk 0:01:02.7]}
34... Rxb2 {[%clk 0:00:12.5]} 35. c7 {[%clk 0:01:02.7]} 35... Rc2 {[%clk
0:00:13]} 36. Kd7 {[%clk 0:01:03.2]} 36... Rd2+ {[%clk 0:00:12.3]} 37. Ke8
{[%clk 0:01:03.7]} 37... Rc2 {[%clk 0:00:12.1]} 38. Kd8 {[%clk 0:01:04]} 38...
h5 {[%clk 0:00:09.4]} 39. h3 {[%clk 0:01:02.2]} 39... hxg4 {[%clk 0:00:08.4]}
40. hxg4 {[%clk 0:01:03.1]} 40... a5 {[%clk 0:00:07.5]} 41. c8=Q {[%clk
0:01:00.6]} 41... Rxc8+ {[%clk 0:00:08.4]} 42. Kxc8 {[%clk 0:01:01.5]} 1-0

[Event "*** Titled Tuesday Blitz"]
[Site "Chess.com"]
[Date "2020.04.21"]
[Round "1"]
[White "Carnivoras"]
[Black "Phenix2k"]
[Result "1-0"]
[WhiteElo "2605"]
[BlackElo "2264"]
[TimeControl "180+1"]
[EndTime "10:06:41 PDT"]
[Termination "Carnivoras won by resignation"]

1. d4 {[%clk 0:03:00.9]} 1... Nf6 {[%clk 0:02:59.4]} 2. Nf3 {[%clk 0:03:01.1]}
2... g6 {[%clk 0:02:59.5]} 3. c4 {[%clk 0:03:00.6]} 3... Bg7 {[%clk 0:02:59.8]}
4. Nc3 {[%clk 0:03:01.2]} 4... O-O {[%clk 0:02:59.7]} 5. e4 {[%clk 0:03:00.7]}
5... d6 {[%clk 0:03:00.2]} 6. Be2 {[%clk 0:03:01.1]} 6... e5 {[%clk 0:02:59.4]}
7. O-O {[%clk 0:03:01.5]} 7... Nc6 {[%clk 0:02:59]} 8. d5 {[%clk 0:03:01.4]}
8... Ne7 {[%clk 0:02:59.6]} 9. b4 {[%clk 0:03:02]} 9... a5 {[%clk 0:02:58.6]}
10. Ba3 {[%clk 0:03:01.6]} 10... axb4 {[%clk 0:02:58.5]} 11. Bxb4 {[%clk
0:03:01.7]} 11... Re8 {[%clk 0:02:58.7]} 12. c5 {[%clk 0:03:01.5]} 12... dxc5
{[%clk 0:02:50.2]} 13. Bxc5 {[%clk 0:03:01.6]} 13... Bf8 {[%clk 0:02:50.3]} 14.
Be3 {[%clk 0:02:34.3]} 14... Ra3 {[%clk 0:02:30.5]} 15. Qc1 {[%clk 0:02:31.9]}
15... Rxc3 {[%clk 0:02:26.7]} 16. Qxc3 {[%clk 0:02:31.3]} 16... Nxe4 {[%clk
0:02:23.6]} 17. Qc2 {[%clk 0:02:21.5]} 17... Qxd5 {[%clk 0:01:56.2]} 18. Qxc7
{[%clk 0:02:12.6]} 18... Nc6 {[%clk 0:01:46.9]} 19. Rfd1 {[%clk 0:02:05.3]}
19... Qe6 {[%clk 0:01:37]} 20. Rac1 {[%clk 0:01:30.9]} 20... Qe7 {[%clk
0:00:59.5]} 21. Qxe7 {[%clk 0:01:24.3]} 21... Bxe7 {[%clk 0:00:59.5]} 22. Bb5
{[%clk 0:01:23.6]} 22... Ba3 {[%clk 0:00:29.1]} 23. Bxc6 {[%clk 0:01:06.2]}
23... bxc6 {[%clk 0:00:29.1]} 24. Rxc6 {[%clk 0:01:04.8]} 24... Be6 {[%clk
0:00:29.7]} 25. Rc2 {[%clk 0:00:57]} 25... Bb4 {[%clk 0:00:21.4]} 26. Rb1 {[%clk
0:00:42]} 26... Ba5 {[%clk 0:00:19.8]} 27. Rb5 {[%clk 0:00:39.6]} 27... Ra8
{[%clk 0:00:19]} 28. Rxe5 {[%clk 0:00:37.7]} 28... Nc3 {[%clk 0:00:12.7]} 29.
Bd2 {[%clk 0:00:35.9]} 29... Nxa2 {[%clk 0:00:09.1]} 30. Rxa5 {[%clk 0:00:34]}
30... Rxa5 {[%clk 0:00:09.1]} 31. Bxa5 {[%clk 0:00:33.4]} 1-0

[Event "*** Titled Tuesday Blitz"]
[Site "Chess.com"]
[Date "2020.04.21"]
[Round "1"]
[White "pawnwonder"]
[Black "Neimar24"]
[Result "0-1"]
[WhiteElo "2168"]
[BlackElo "2550"]
[TimeControl "180+1"]
[EndTime "10:06:44 PDT"]
[Termination "Neimar24 won by resignation"]

1. e4 {[%clk 0:02:57.8]} 1... c5 {[%clk 0:02:45.2]} 2. Nf3 {[%clk 0:02:57]} 2...
d6 {[%clk 0:02:45.4]} 3. d4 {[%clk 0:02:56.8]} 3... cxd4 {[%clk 0:02:46.3]} 4.
Nxd4 {[%clk 0:02:57.7]} 4... Nf6 {[%clk 0:02:46.4]} 5. Nc3 {[%clk 0:02:58.4]}
5... Bd7 {[%clk 0:02:46.8]} 6. Be2 {[%clk 0:02:43.9]} 6... Bc6 {[%clk
0:02:45.5]} 7. f3 {[%clk 0:02:41.3]} 7... e6 {[%clk 0:02:43.6]} 8. O-O {[%clk
0:02:35.2]} 8... Nbd7 {[%clk 0:02:39]} 9. Be3 {[%clk 0:02:34.8]} 9... Be7 {[%clk
0:02:32.8]} 10. Qd2 {[%clk 0:02:32.3]} 10... O-O {[%clk 0:02:29.1]} 11. Rad1
{[%clk 0:02:15.7]} 11... a6 {[%clk 0:02:25]} 12. Nxc6 {[%clk 0:02:13.9]} 12...
bxc6 {[%clk 0:02:24.7]} 13. g4 {[%clk 0:02:12.6]} 13... d5 {[%clk 0:02:23.3]}
14. g5 {[%clk 0:02:01.4]} 14... Ne8 {[%clk 0:02:22.1]} 15. f4 {[%clk 0:02:01.5]}
15... Nd6 {[%clk 0:02:21.9]} 16. Bg4 {[%clk 0:01:19.3]} 16... dxe4 {[%clk
0:02:07.2]} 17. Nxe4 {[%clk 0:01:08.6]} 17... Nxe4 {[%clk 0:02:06.5]} 18. Qxd7
{[%clk 0:01:08.5]} 18... Qxd7 {[%clk 0:02:02.4]} 19. Rxd7 {[%clk 0:01:09.4]}
19... Bc5 {[%clk 0:02:03]} 20. Bxc5 {[%clk 0:01:08.9]} 20... Nxc5 {[%clk
0:02:01.9]} 21. Rc7 {[%clk 0:01:09.3]} 21... Rfc8 {[%clk 0:01:56.1]} 22. Rxc8+
{[%clk 0:01:05]} 22... Rxc8 {[%clk 0:01:57]} 23. Rd1 {[%clk 0:01:03.6]} 23...
Kf8 {[%clk 0:01:57.4]} 24. b4 {[%clk 0:00:54.4]} 24... Ne4 {[%clk 0:01:51.3]}
25. Rd7 {[%clk 0:00:33.3]} 25... c5 {[%clk 0:01:50.5]} 26. Bf3 {[%clk
0:00:17.1]} 26... Nc3 {[%clk 0:01:42.9]} 27. a3 {[%clk 0:00:16.1]} 27... Ke8
{[%clk 0:01:22.3]} 28. Ra7 {[%clk 0:00:15.4]} 28... Nd5 {[%clk 0:01:15.9]} 29.
Rxa6 {[%clk 0:00:11.6]} 29... cxb4 {[%clk 0:01:15.1]} 30. axb4 {[%clk
0:00:05.7]} 30... Nxb4 {[%clk 0:01:10.2]} 31. Ra8 {[%clk 0:00:04.9]} 31... Rxa8
{[%clk 0:01:09.2]} 32. Bxa8 {[%clk 0:00:05.8]} 32... Nxc2 {[%clk 0:01:09.7]} 33.
Kf2 {[%clk 0:00:06.4]} 33... Nb4 {[%clk 0:01:09.3]} 34. Be4 {[%clk 0:00:06.2]}
34... Ke7 {[%clk 0:01:09.7]} 35. Ke3 {[%clk 0:00:06.5]} 35... g6 {[%clk
0:01:06.3]} 36. Kd4 {[%clk 0:00:06.3]} 36... Kd6 {[%clk 0:01:06.3]} 37. h4
{[%clk 0:00:05]} 37... Nd5 {[%clk 0:01:06.5]} 38. f5 {[%clk 0:00:02.9]} 38...
gxf5 {[%clk 0:01:02.8]} 39. Bg2 {[%clk 0:00:03.1]} 39... e5+ {[%clk 0:01:02.7]}
0-1

[Event "*** Titled Tuesday Blitz"]
[Site "Chess.com"]
[Date "2020.04.21"]
[Round "1"]
[White "Perecke"]
[Black "StegariuVlad"]
[Result "1-0"]
[WhiteElo "2160"]
[BlackElo "2519"]
[TimeControl "180+1"]
[EndTime "10:06:44 PDT"]
[Termination "Perecke won by resignation"]

1. e4 {[%clk 0:02:58.6]} 1... e5 {[%clk 0:02:59.5]} 2. Nf3 {[%clk 0:02:57.9]}
2... Nc6 {[%clk 0:02:59.5]} 3. Bb5 {[%clk 0:02:58.2]} 3... a6 {[%clk 0:02:58.5]}
4. Ba4 {[%clk 0:02:56.4]} 4... Nf6 {[%clk 0:02:58.5]} 5. O-O {[%clk 0:02:54.6]}
5... Be7 {[%clk 0:02:57.8]} 6. Re1 {[%clk 0:02:54.6]} 6... b5 {[%clk 0:02:56.4]}
7. Bb3 {[%clk 0:02:54.7]} 7... O-O {[%clk 0:02:56.5]} 8. d4 {[%clk 0:02:54.8]}
8... d6 {[%clk 0:02:56]} 9. c3 {[%clk 0:02:49]} 9... Bg4 {[%clk 0:02:51.9]} 10.
Be3 {[%clk 0:02:48.5]} 10... Na5 {[%clk 0:02:50.7]} 11. Bc2 {[%clk 0:02:48.3]}
11... Nc4 {[%clk 0:02:50.1]} 12. Bc1 {[%clk 0:02:27.3]} 12... exd4 {[%clk
0:02:48.7]} 13. cxd4 {[%clk 0:02:24.6]} 13... d5 {[%clk 0:02:48.8]} 14. b3
{[%clk 0:02:18.7]} 14... dxe4 {[%clk 0:02:46]} 15. Bxe4 {[%clk 0:02:16.8]} 15...
Nxe4 {[%clk 0:02:39.4]} 16. Rxe4 {[%clk 0:01:54.7]} 16... Bf5 {[%clk 0:02:38.6]}
17. Rxe7 {[%clk 0:01:44.5]} 17... Qxe7 {[%clk 0:02:35.5]} 18. bxc4 {[%clk
0:01:44.3]} 18... bxc4 {[%clk 0:02:35.6]} 19. Nc3 {[%clk 0:01:41.6]} 19... Rfd8
{[%clk 0:02:29.2]} 20. Be3 {[%clk 0:01:39.6]} 20... Bg4 {[%clk 0:02:26.7]} 21.
h3 {[%clk 0:01:37.7]} 21... Bh5 {[%clk 0:02:26.2]} 22. g4 {[%clk 0:01:32.1]}
22... Bg6 {[%clk 0:02:25.9]} 23. Ne5 {[%clk 0:01:32.1]} 23... Qb4 {[%clk
0:02:09.3]} 24. Qd2 {[%clk 0:01:08.7]} 24... Rd6 {[%clk 0:01:42.7]} 25. Nxg6
{[%clk 0:01:05.5]} 25... hxg6 {[%clk 0:01:41.3]} 26. Rb1 {[%clk 0:01:05.2]}
26... Qa5 {[%clk 0:01:40.8]} 27. Ne4 {[%clk 0:00:58.4]} 27... Rb6 {[%clk
0:01:33.8]} 28. Qxa5 {[%clk 0:00:54.1]} 28... Rxb1+ {[%clk 0:01:33.4]} 29. Kg2
{[%clk 0:00:54.4]} 29... Rb6 {[%clk 0:01:20.9]} 30. Qd5 {[%clk 0:00:52.2]} 30...
Re8 {[%clk 0:01:11.3]} 31. Ng5 {[%clk 0:00:51.7]} 31... Rf6 {[%clk 0:01:02.6]}
32. Qxc4 {[%clk 0:00:51.4]} 32... Re7 {[%clk 0:01:00.9]} 33. Qc5 {[%clk
0:00:50.9]} 33... Rd6 {[%clk 0:00:59.7]} 34. Bf4 {[%clk 0:00:46.7]} 34... Rdd7
{[%clk 0:00:59.4]} 35. Nf3 {[%clk 0:00:39.2]} 35... Re4 {[%clk 0:00:58.4]} 36.
Be3 {[%clk 0:00:38.1]} 36... f6 {[%clk 0:00:57]} 37. Qc6 {[%clk 0:00:37]} 37...
Ree7 {[%clk 0:00:56.4]} 38. Qxa6 {[%clk 0:00:36.7]} 38... Kh7 {[%clk 0:00:56]}
39. Qc4 {[%clk 0:00:36.5]} 39... Re8 {[%clk 0:00:52.9]} 40. a4 {[%clk
0:00:36.7]} 40... Ra8 {[%clk 0:00:52.4]} 41. Qc6 {[%clk 0:00:36.1]} 41... Rdd8
{[%clk 0:00:51.4]} 42. g5 {[%clk 0:00:36.5]} 42... Ra7 {[%clk 0:00:47]} 43. gxf6
{[%clk 0:00:36.3]} 43... Rd6 {[%clk 0:00:47.1]} 44. Ng5+ {[%clk 0:00:33.6]} 1-0